bitfinex/quotes_ETHUSD_20240709
["timestamp","ask_amount","ask_price","bid_price","bid_amount"]
[1720524051099,1.12264305,3086.6,3086.0,6.13675284]
[1720524051300,1.41448846,3086.5,3086.1,3.30512357]
[1720524051505,0.1146909,3086.7,3086.2,3.24022]
[1720524051664,1.41445855,3086.6,3086.2,3.24022]
[1720524052009,1.41445855,3086.6,3086.0,2.89632284]
[1720524052202,1.41445855,3086.6,3086.0,6.13673284]
[1720524052410,1.41445855,3086.6,3086.1,3.24032]
[1720524052611,1.41445855,3086.6,3086.1,0.34426511]
[1720524054485,1.41445855,3086.6,3085.7,3.24066]
[1720524054486,1.41445855,3086.6,3085.8,3.24064]
[1720524054726,0.1146909,3086.7,3085.8,3.24064]
[1720524055041,1.4144992,3086.6,3085.9,3.24051]
[1720524055187,1.4144992,3086.6,3086.0,0.324051]
[1720524055396,0.1146909,3086.7,3086.0,0.324051]
[1720524055397,0.1146909,3086.7,3086.0,3.62927287]
[1720524056517,0.1146909,3086.7,3086.0,3.564471]
[1720524056705,0.1146909,3086.7,3086.0,0.324051]
[1720524057339,0.1146909,3086.7,3085.7,3.24067]
[1720524057692,1.41450653,3086.6,3085.7,3.24067]
[1720524058038,0.1146909,3086.7,3085.7,3.24067]
[1720524058907,2.53713814,3086.6,3085.6,5.71958]
[1720524059113,0.1146909,3086.7,3085.6,5.71958]
[1720524059313,2.53715691,3086.6,3085.7,3.24069]
[1720524059646,0.1146909,3086.7,3085.7,3.24069]
[1720524059853,2.53715783,3086.6,3085.7,3.24069]
[1720524060001,0.1146909,3086.7,3085.7,3.24069]
[1720524060002,0.1146909,3086.7,3085.7,6.48135]
[1720524060206,1.12263069,3086.6,3085.7,6.48135]
[1720524060407,0.1146909,3086.7,3085.7,6.48135]
[1720524060646,1.12262717,3086.6,3085.6,2.4788]
[1720524060851,0.1146909,3086.7,3085.6,5.4788]
[1720524061012,2.53715625,3086.6,3085.6,8.71959]
[1720524061212,0.1146909,3086.7,3085.7,3.24071]
[1720524061447,1.12263448,3086.6,3085.7,3.24067]
[1720524061644,0.1146909,3086.7,3085.8,3.24064]
[1720524061955,1.12261175,3086.6,3085.8,3.24064]
[1720524062173,0.1146909,3086.7,3085.8,3.24064]
[1720524063062,0.1146909,3086.7,3085.9,6.11732499]
[1720524063260,0.1146909,3086.7,3086.0,3.24038]
[1720524063459,0.1146909,3086.7,3086.6,2.812]
[1720524063959,0.1146909,3086.7,3086.6,5.1587]
[1720524064770,0.1146909,3086.7,3086.6,8.46330058]
[1720524064977,0.1146909,3086.7,3086.6,11.70311058]
[1720524065149,0.1146909,3086.7,3086.6,14.94292058]
[1720524065589,7.36,3087.8,3087.5,3.23878]
[1720524065802,7.36,3088.5,3087.8,3.23854]
[1720524065944,1.12205277,3088.4,3088.0,2.812]
[1720524066145,1.12205277,3088.3,3088.0,2.812]
[1720524066399,9.7672,3089.2,3088.0,2.812]
[1720524066556,2.61650762,3089.1,3087.8,3.23854]
[1720524066763,3.03792688,3089.0,3087.8,3.23854]
[1720524066965,2.61650765,3088.9,3087.4,2.4443]
[1720524067163,10.7892,3088.8,3086.8,5.2563]
[1720524067370,4.3632,3088.5,3086.8,5.2563]
[1720524067567,4.18987525,3088.4,3086.8,2.4443]
[1720524067793,2.53603792,3088.3,3086.8,2.4443]
[1720524068095,6.72871642,3088.2,3086.8,2.4443]
[1720524068258,2.53603792,3088.1,3086.8,2.4443]
[1720524068596,2.53603792,3088.1,3086.4,2.812]
[1720524068597,2.3484,3087.9,3086.4,5.2458]
[1720524068759,2.37893649,3087.8,3086.4,8.48579]
[1720524069090,3.16702566,3087.7,3086.4,8.48579]
[1720524069251,5.53603792,3087.6,3086.4,8.48579]
[1720524069446,1.7531284,3087.5,3086.4,8.48579]
[1720524069657,1.12214067,3087.4,3086.4,5.2458]
[1720524069860,0.08098773,3087.3,3086.4,8.48577]
[1720524070048,1.07214067,3087.2,3086.4,11.72571]
[1720524070245,1.07214067,3087.2,3086.8,6.05158]
[1720524070449,3.0,3087.8,3086.8,6.05158]
[1720524070684,7.36,3088.1,3086.9,3.23948]
[1720524070685,1.08484,3087.7,3086.9,3.23948]
[1720524070890,0.55,3087.7,3086.9,3.23948]
[1720524071089,7.36,3088.1,3087.2,2.812]
[1720524071298,2.3906,3088.3,3087.2,6.05117]
[1720524071464,2.92966,3088.3,3087.2,8.35728]
[1720524071672,3.0,3088.2,3087.2,8.35728]
[1720524071991,3.0,3088.2,3087.2,2.812]
[1720524072555,1.41397108,3088.1,3086.8,5.101]
[1720524072754,0.08098377,3088.0,3086.8,2.289]
[1720524072955,0.55,3087.9,3086.8,2.289]
[1720524073254,0.55,3087.9,3086.4,9.05193]
[1720524073255,0.08098376,3087.8,3086.4,8.32753]
[1720524073579,2.8162,3087.7,3086.4,5.0876]
[1720524073777,0.08098375,3087.6,3086.4,5.0876]
[1720524074011,0.55,3087.5,3086.4,5.0876]
[1720524074201,0.04824599,3087.4,3086.4,8.3276]
[1720524074397,0.04824599,3087.4,3086.5,3.2399]
[1720524074698,0.55,3087.5,3086.5,3.2399]
[1720524076302,5.2869,3088.1,3086.6,6.47948]
[1720524076454,1.96417425,3088.0,3086.6,6.47948]
[1720524076651,2.2869,3088.1,3086.8,2.812]
[1720524076857,0.53906,3088.3,3087.2,2.812]
[1720524077096,0.53906,3088.3,3087.3,0.06477258]
[1720524077395,0.50748784,3088.8,3087.4,3.23896]
[1720524077570,1.46212989,3088.7,3087.2,9.29025]
[1720524077773,1.4138839,3088.6,3087.2,6.05108]
[1720524077985,1.4138839,3088.6,3087.2,9.29019]
[1720524078160,1.4138839,3088.6,3087.2,6.05108]
[1720524078698,0.59824599,3088.5,3087.2,2.812]
[1720524078993,3.7508839,3088.4,3086.9,3.23948]
[1720524079200,0.59824599,3088.3,3086.9,3.23948]
[1720524079361,0.04824599,3088.2,3086.9,3.23948]
[1720524079557,0.55,3088.1,3087.0,3.0]
[1720524079800,0.04824599,3088.0,3087.0,3.0]
[1720524080094,1.67224001,3087.9,3087.0,3.0]
[1720524080342,1.17048493,3087.8,3087.0,3.0]
[1720524080493,1.12223894,3087.7,3087.0,3.0]
[1720524081230,1.12223894,3087.7,3086.9,3.23948]
[1720524081550,0.55,3087.9,3086.9,3.23943]
[1720524081733,1.12223025,3087.8,3086.9,3.23943]
[1720524081933,0.04824599,3088.2,3087.2,2.812]
[1720524082090,1.12218778,3088.1,3087.4,3.23896]
[1720524082290,0.50748784,3088.8,3087.4,3.23896]
[1720524082291,1.12218778,3088.0,3087.4,3.23896]
[1720524082593,0.50748784,3088.8,3087.5,2.4693]
[1720524082934,1.17028634,3088.7,3087.5,2.4693]
[1720524083087,0.16777742,3088.6,3087.5,2.4693]
[1720524083293,1.28981777,3088.6,3087.5,5.70813]
[1720524083528,1.12204035,3088.5,3087.5,5.70813]
[1720524083797,0.16777742,3088.6,3087.5,5.70813]
[1720524083798,2.24409941,3088.4,3087.5,5.70813]
[1720524084130,1.12204968,3088.3,3087.5,5.70813]
[1720524084541,1.12204968,3088.3,3087.6,6.05074]
[1720524084895,0.33925007,3088.2,3087.6,6.05074]
[1720524085315,0.33925007,3088.2,3087.6,2.812]
[1720524085631,1.12202737,3088.1,3087.1,2.3267]
[1720524085839,1.12202737,3088.0,3087.1,2.3267]
[1720524086133,0.59824599,3087.9,3086.9,2.812]
[1720524086429,1.12202737,3087.8,3086.9,2.812]
[1720524086628,0.55,3087.7,3086.5,2.812]
[1720524086831,1.12202737,3087.6,3086.4,5.56662]
[1720524087038,0.55,3087.5,3086.4,5.56662]
[1720524087244,1.12236868,3087.5,3086.4,5.56662]
[1720524087412,1.12236868,3087.4,3086.4,5.56662]
[1720524087610,1.12236868,3087.6,3086.4,2.3267]
[1720524087824,2.4718,3087.4,3085.9,8.52361]
[1720524088025,2.4718,3087.4,3085.9,5.2831]
[1720524088026,1.72061467,3087.3,3085.9,5.2831]
[1720524088229,1.58985614,3087.2,3086.0,3.24041]
[1720524088425,1.12236868,3087.1,3086.0,3.24041]
[1720524088748,1.12236868,3087.1,3085.9,5.2831]
[1720524088749,0.04824599,3087.0,3085.9,5.2831]
[1720524089060,1.12236868,3086.9,3085.9,5.2831]
[1720524089251,0.04824599,3086.8,3085.9,2.812]
[1720524089427,1.12236868,3086.7,3085.9,2.812]
[1720524089616,1.12236868,3086.7,3085.5,5.3]
[1720524089811,0.55,3086.6,3085.5,5.3]
[1720524090244,0.55,3086.8,3085.9,2.812]
[1720524090452,1.1227003,3086.7,3086.0,0.06480332]
[1720524090654,1.1227003,3086.6,3086.3,2.812]
[1720524090856,7.36,3087.2,3086.3,5.31109406]
[1720524091059,1.12245404,3087.1,3086.8,2.812]
[1720524091219,1.12245404,3087.0,3086.8,2.812]
[1720524091429,7.36,3087.6,3086.4,2.812]
[1720524091627,5.40844678,3087.5,3086.4,2.812]
[1720524091839,1.12244678,3087.4,3086.4,2.812]
[1720524092922,0.59824599,3087.3,3086.4,2.812]
[1720524093118,1.17069277,3087.2,3086.4,2.812]
[1720524093428,1.12244678,3087.1,3086.4,2.812]
[1720524093658,1.12254679,3087.0,3086.4,2.812]
[1720524093821,1.12254679,3086.9,3086.4,2.812]
[1720524094039,1.12255161,3086.8,3086.4,2.812]
[1720524094364,1.12255161,3086.7,3086.4,2.812]
[1720524094565,1.12253277,3086.7,3086.4,2.812]
[1720524094858,7.36,3087.2,3086.4,2.812]
[1720524095018,1.12252937,3087.1,3086.4,2.812]
[1720524095351,1.12252937,3087.0,3086.0,2.812]
[1720524095538,0.04824599,3086.9,3086.1,3.51967]
[1720524095722,1.12252937,3086.8,3086.1,3.51967]
[1720524095929,1.12252937,3087.1,3086.1,3.51967]
[1720524096129,1.12252937,3087.1,3086.2,0.35131795]
[1720524096942,1.12252937,3087.1,3086.4,6.052]
[1720524097144,7.36,3087.2,3086.4,6.052]
[1720524097320,1.12242214,3087.1,3086.4,6.052]
[1720524097522,1.12242214,3087.0,3086.4,2.812]
[1720524097757,1.12242214,3087.1,3086.5,0.2812]
[1720524097962,1.12242214,3087.0,3086.4,2.812]
[1720524098145,1.12242214,3087.1,3086.4,2.812]
[1720524098345,1.17066813,3087.1,3086.4,2.812]
[1720524098548,1.12242214,3087.0,3086.4,2.812]
[1720524098755,0.04824599,3086.9,3086.0,2.812]
[1720524098961,1.12242214,3086.8,3086.0,2.812]
[1720524099265,2.53684052,3086.7,3086.0,2.812]
[1720524099562,1.12242214,3086.6,3086.0,2.812]
[1720524099766,1.12242214,3087.1,3085.9,2.3847]
[1720524099926,2.75173112,3087.0,3085.9,2.3847]
[1720524100246,2.5370718,3086.9,3085.9,5.3847]
[1720524100465,0.55,3086.8,3085.9,5.3847]
[1720524100762,1.9685063,3087.0,3085.9,8.68995265]
[1720524100763,1.41455361,3086.7,3085.9,8.68995265]
[1720524100920,1.12266159,3086.7,3086.2,2.812]
[1720524101126,1.12266159,3086.6,3086.2,6.05221]
[1720524101359,0.33937409,3087.0,3086.2,6.05221]
[1720524101579,2.53691812,3086.9,3086.2,2.812]
[1720524101726,2.53691812,3086.8,3086.2,2.812]
[1720524102085,2.53691812,3086.7,3086.2,2.812]
[1720524102242,0.33937409,3087.0,3086.2,2.812]
[1720524102562,2.53692426,3086.9,3086.2,2.812]
[1720524102890,2.53692426,3086.8,3086.2,2.812]
[1720524103041,2.53692426,3086.7,3086.2,6.05221]
[1720524103231,0.33937409,3087.0,3086.2,6.05221]
[1720524103570,2.53680003,3086.9,3086.2,6.05221]
[1720524103882,1.41435181,3086.8,3086.2,6.05221]
[1720524104191,1.1224759,3086.7,3086.4,3.24001]
[1720524104468,0.33937409,3087.0,3086.6,2.812]
[1720524104667,1.12243453,3086.9,3086.6,2.812]
[1720524104884,1.4142706,3086.9,3086.6,2.812]
[1720524105027,0.33937409,3087.0,3086.6,2.812]
[1720524106247,0.33937409,3087.0,3086.6,2.87678707]
[1720524106567,0.33937409,3087.0,3086.8,3.23958]
[1720524106865,0.33937409,3087.0,3086.9,0.323958]
[1720524107073,0.33937409,3087.0,3086.7,3.23965]
[1720524107243,0.33937409,3087.0,3086.6,2.812]
[1720524107443,0.33937409,3087.0,3086.3,2.3081]
[1720524107774,0.33937409,3087.0,3086.3,5.3081]
[1720524108128,1.41425068,3086.9,3086.3,5.3081]
[1720524108528,1.41425068,3086.9,3086.3,8.54812]
[1720524108828,0.33937409,3087.0,3086.3,8.54812]
[1720524109030,2.53677464,3086.9,3086.3,3.0]
[1720524109366,2.53676409,3086.8,3086.3,3.0]
[1720524109665,2.53676409,3086.7,3086.0,2.3975]
[1720524109873,0.33937409,3087.0,3086.0,2.3975]
[1720524109874,2.53676409,3086.6,3086.0,2.3975]
[1720524110049,2.53676409,3086.5,3086.0,2.3975]
[1720524110370,0.27789741,3086.9,3086.0,2.3975]
[1720524110572,2.53715521,3086.8,3086.0,2.3975]
[1720524110784,0.27789741,3086.9,3085.8,2.812]
[1720524110785,2.5854012,3086.7,3085.8,2.812]
[1720524110942,2.4938,3086.5,3085.6,2.3491]
[1720524111151,4.14650102,3086.4,3085.3,2.3491]
[1720524111487,4.09825503,3086.3,3085.3,2.3491]
[1720524111630,1.46276615,3086.2,3085.3,2.58401]
[1720524111871,2.53715521,3086.1,3085.3,2.58401]
[1720524112103,2.53715521,3086.0,3085.3,2.58401]
[1720524112320,2.53715521,3085.9,3085.3,2.58401]
[1720524112606,2.53715521,3085.8,3085.3,0.23491]
[1720524112807,1.12263505,3085.7,3085.0,8.54557]
[1720524113115,1.5609704,3086.3,3085.1,3.24136]
[1720524113267,2.53767542,3086.2,3085.1,3.24136]
[1720524113611,0.55,3086.4,3085.1,3.24136]
[1720524113810,1.12284438,3086.3,3085.4,2.812]
[1720524113981,0.55,3086.4,3085.4,2.812]
[1720524114175,1.12285797,3086.3,3085.4,2.812]
[1720524114372,2.53765902,3086.2,3085.4,2.812]
[1720524114599,2.53761793,3086.1,3085.4,2.812]
[1720524114904,2.53761793,3086.0,3085.4,2.812]
[1720524115106,1.12283979,3085.9,3085.4,2.812]
[1720524115261,0.88023401,3086.4,3085.4,2.812]
[1720524115466,0.33944633,3086.1,3085.4,2.812]
[1720524115688,2.53760993,3086.0,3085.4,2.812]
[1720524115886,1.12283625,3085.9,3085.4,6.05305]
[1720524116087,0.33944633,3086.1,3085.4,2.812]
[1720524116288,2.5375597,3086.0,3085.4,2.812]
[1720524116496,2.58591353,3085.9,3085.0,5.3041]
[1720524116665,2.53766754,3085.8,3085.0,5.3041]
[1720524116870,1.12279978,3085.7,3085.0,5.3041]
[1720524117108,1.12295763,3085.6,3085.0,5.3041]
[1720524117315,1.12295763,3085.5,3085.0,5.3041]
[1720524117611,1.12295763,3085.9,3085.0,5.3041]
[1720524117903,1.12293523,3085.8,3085.0,8.54556]
[1720524118139,1.12293523,3085.7,3085.0,8.54556]
[1720524118302,1.12293523,3085.6,3085.0,8.54556]
[1720524118499,0.33944633,3086.1,3085.0,8.54556]
[1720524118702,2.53776964,3086.0,3085.0,8.54556]
[1720524118897,0.33944633,3086.1,3085.4,2.812]
[1720524118898,1.12291592,3085.9,3085.4,2.812]
[1720524119098,1.12291592,3085.8,3085.4,2.812]
[1720524119347,0.33944633,3086.1,3085.5,0.2812]
[1720524119516,1.12281805,3086.0,3085.5,0.2812]
[1720524119839,1.12281805,3085.9,3085.5,0.2812]
[1720524120043,0.33944633,3086.1,3085.6,0.30932]
[1720524120230,1.12280479,3086.0,3085.6,0.30932]
[1720524120425,1.12279375,3085.9,3085.6,0.30932]
[1720524120744,0.33944633,3086.1,3085.6,0.30932]
[1720524120928,1.12279981,3086.0,3085.6,0.30932]
[1720524121112,0.33944633,3086.1,3085.6,0.30932]
[1720524121316,1.12278139,3086.0,3085.6,0.30932]
[1720524121647,0.33944633,3086.1,3085.6,0.30932]
[1720524121945,1.12278108,3086.0,3085.6,2.75772]
[1720524122112,0.33944633,3086.1,3085.7,0.275772]
[1720524122304,1.12277493,3086.0,3085.8,0.06481062]
[1720524122565,0.33944633,3086.1,3085.8,2.87680661]
[1720524122738,7.36,3086.9,3085.9,0.31525786]
[1720524123040,2.02497636,3087.5,3086.2,2.812]
[1720524123041,1.12254865,3086.8,3086.2,2.812]
[1720524123236,1.12254865,3086.7,3086.2,2.87679615]
[1720524123400,1.12254865,3086.6,3086.2,2.812]
[1720524123601,0.04824599,3086.5,3085.6,2.4484]
[1720524123833,2.53717201,3086.4,3085.0,11.56238]
[1720524124045,2.585418,3086.3,3085.1,3.24138]
[1720524124268,2.53717201,3086.2,3085.1,3.24138]
[1720524124558,2.585418,3086.1,3085.1,3.24138]
[1720524124765,2.27141115,3086.0,3085.0,2.812]
[1720524125050,4.86037201,3085.9,3084.8,3.24168]
[1720524125230,2.53717201,3085.8,3084.9,3.565748]
[1720524125433,2.3232,3085.9,3084.9,3.565748]
[1720524125434,1.12254865,3085.7,3084.9,3.565748]
[1720524125621,1.12254865,3085.8,3085.0,2.812]
[1720524125818,1.12254865,3085.9,3085.0,2.812]
[1720524126023,1.12254865,3085.8,3085.0,2.812]
[1720524126411,1.12254865,3085.7,3085.0,2.812]
[1720524126610,1.12254865,3085.9,3085.0,2.812]
[1720524126843,1.41495868,3085.8,3085.0,2.812]
[1720524127045,1.12254865,3085.7,3085.0,2.812]
[1720524127446,1.12254865,3085.9,3085.0,2.812]
[1720524127623,1.41497754,3085.8,3085.0,2.812]
[1720524127821,1.12254865,3085.7,3085.0,2.812]
[1720524128238,1.12254865,3085.9,3085.0,2.812]
[1720524128547,1.41497607,3085.8,3085.0,2.812]
[1720524128855,1.12254865,3085.7,3085.0,2.812]
[1720524129221,1.12254865,3085.6,3085.0,2.812]
[1720524129409,0.55,3086.0,3085.0,2.812]
[1720524129736,2.53788196,3085.9,3085.0,2.812]
[1720524129935,0.55,3086.1,3085.0,2.812]
[1720524129936,2.53788196,3085.8,3085.0,2.812]
[1720524130245,1.12295662,3085.7,3085.0,2.812]
[1720524130412,1.12295662,3085.6,3085.0,2.812]
[1720524130612,0.55,3086.1,3085.0,2.812]
[1720524130814,2.89285631,3086.0,3085.0,2.812]
[1720524131021,3.08785631,3085.9,3085.0,2.812]
[1720524131240,2.53785631,3085.8,3085.0,2.812]
[1720524131434,2.53785631,3085.7,3085.0,2.812]
[1720524131641,2.53785631,3085.6,3085.0,2.812]
[1720524131827,2.53794898,3085.5,3085.0,2.812]
[1720524132030,0.2537949,3085.5,3085.0,2.812]
[1720524132238,0.59824599,3085.9,3084.6,8.32133]
[1720524132439,2.53802642,3085.8,3084.7,6.24174]
[1720524132613,2.58627241,3085.7,3084.7,3.24174]
[1720524132815,2.58627241,3085.7,3084.2,2.812]
[1720524132816,2.3148,3085.5,3084.2,2.812]
[1720524133123,3.13629404,3085.4,3084.2,2.812]
[1720524133323,2.53804805,3085.3,3084.2,2.812]
[1720524133527,2.53804805,3085.2,3084.2,6.05426]
[1720524133727,2.53804805,3085.1,3084.2,2.812]
[1720524133912,0.59824599,3085.4,3083.8,6.05475]
[1720524133913,2.53846561,3085.0,3083.8,6.05475]
[1720524134109,1.12319627,3084.9,3084.1,3.24242]
[1720524134347,1.12319627,3085.3,3083.8,6.05469]
[1720524134522,3.08855579,3085.2,3083.8,6.05469]
[1720524134709,2.53855579,3085.1,3083.9,3.0]
[1720524134914,3.08855579,3085.0,3083.9,3.0]
[1720524135117,2.53855579,3084.9,3083.9,3.0]
[1720524135457,2.53877095,3084.8,3083.8,2.812]
[1720524135618,2.53877095,3084.7,3083.8,2.812]
[1720524135817,3.08877095,3084.6,3083.8,2.812]
[1720524136015,1.96559273,3084.5,3083.8,2.812]
[1720524136341,1.12348629,3084.5,3083.8,2.812]
[1720524136528,1.67347398,3084.4,3083.8,2.812]
[1720524136732,1.12347398,3084.3,3083.8,2.812]
[1720524136948,0.55,3084.4,3083.8,2.812]
[1720524137347,0.55,3084.4,3083.4,3.24314]
[1720524137348,1.12350195,3084.3,3083.4,2.812]
[1720524137566,0.04824599,3084.2,3083.4,2.812]
[1720524138559,1.12351975,3084.1,3083.4,2.812]
[1720524138763,0.76559462,3084.4,3083.4,2.812]
[1720524138961,1.12357749,3084.3,3083.5,0.2812]
[1720524139167,1.12357749,3084.2,3083.6,3.30773602]
[1720524139442,1.07348629,3084.5,3083.8,2.812]
[1720524139682,1.07348629,3084.5,3083.8,6.11958647]
[1720524139849,1.07348629,3084.5,3083.9,5.57828]
[1720524140053,1.07348629,3084.5,3084.2,2.812]
[1720524140675,1.07348629,3084.5,3083.9,2.3357]
[1720524142063,1.07348629,3084.5,3083.8,2.812]
[1720524143363,1.07348629,3084.5,3083.5,5.4969]
[1720524143364,1.1234915,3084.4,3083.5,2.2539]
[1720524143571,1.07348629,3084.5,3083.5,2.76049]
[1720524143876,1.17176107,3084.4,3083.5,2.2539]
[1720524144189,1.67351508,3084.3,3083.4,2.812]
[1720524144490,1.12351508,3084.2,3083.4,2.812]
[1720524144790,0.55,3084.3,3083.4,2.812]
[1720524145092,0.55,3084.4,3083.4,2.812]
[1720524145302,1.12355874,3084.3,3083.4,2.812]
[1720524145471,1.07348629,3084.5,3083.5,3.24305]
[1720524145670,1.12352766,3084.4,3083.5,3.24305]
[1720524145855,1.07348629,3084.5,3083.7,3.24285]
[1720524146399,1.07348629,3084.5,3083.6,3.24295]
[1720524146553,1.12348987,3084.4,3083.4,6.05509]
[1720524146750,1.12173228,3084.5,3083.4,2.812]
[1720524146987,1.12352972,3084.4,3083.4,2.812]
[1720524147194,0.04824599,3084.3,3083.4,2.812]
[1720524147901,0.04824599,3084.3,3083.4,6.05515]
[1720524148392,1.07348629,3084.5,3083.4,2.812]
[1720524148600,1.67356369,3084.4,3083.4,2.812]
[1720524148786,1.12356369,3084.3,3083.4,2.812]
[1720524149096,0.55,3084.2,3083.4,2.812]
[1720524149489,0.55,3084.3,3083.4,2.812]
[1720524149718,1.07348629,3084.5,3083.5,0.06485532]
[1720524149894,1.07348629,3084.5,3083.7,2.4904]
[1720524150223,1.07348629,3084.5,3083.7,5.73324]
[1720524150976,1.07348629,3084.5,3083.8,6.11950581]
[1720524151182,1.07348629,3084.5,3084.2,2.812]
[1720524152060,1.07348629,3084.5,3083.8,6.05467]
[1720524152226,7.36,3085.2,3084.1,3.24233]
[1720524152416,1.12330265,3085.1,3084.1,3.24233]
[1720524152615,1.12330265,3085.0,3084.2,8.4335]
[1720524152818,3.33957316,3085.4,3084.4,3.24211]
[1720524153012,3.33957316,3085.4,3083.8,6.66271]
[1720524153013,1.12321418,3085.3,3084.5,2.46193189]
[1720524153324,0.33957316,3085.4,3085.3,5.63827]
[1720524153621,7.36,3086.4,3085.4,3.24104]
[1720524153962,1.12283582,3086.3,3085.4,3.24104]
[1720524154117,1.12283582,3086.2,3085.4,3.24104]
[1720524154313,1.12283582,3086.1,3085.4,6.48208]
[1720524154660,2.62165773,3086.5,3085.4,6.48208]
[1720524154661,3.0,3086.4,3085.5,3.24096]
[1720524154817,1.12277814,3086.3,3085.6,0.0648102]
[1720524155021,3.26216577,3086.4,3085.6,0.0648102]
[1720524155022,1.12277814,3086.2,3085.6,0.0648102]
[1720524155222,0.26216577,3086.4,3085.6,0.0648102]
[1720524155439,1.12276219,3086.3,3085.8,3.24059]
[1720524155759,0.33945773,3086.5,3085.8,3.30539364]
[1720524155918,2.292,3086.9,3085.8,3.24059]
[1720524156263,2.53717933,3086.8,3085.8,3.24059]
[1720524156468,2.6314216,3086.9,3085.8,3.24059]
[1720524156469,1.12264572,3086.7,3085.8,3.24059]
[1720524156675,1.49805245,3086.7,3085.8,3.24059]
[1720524156820,1.12264572,3086.6,3085.9,0.06480448]
[1720524157021,0.3394216,3086.9,3085.9,0.06480448]
[1720524157255,1.1225714,3086.8,3086.1,3.24027]
[1720524157436,1.1225714,3086.7,3085.7,3.24069]
[1720524157962,1.17081739,3086.7,3085.6,3.24076]
[1720524158162,1.1225714,3086.6,3085.5,6.24089]
[1720524158332,0.04824599,3086.5,3085.5,6.24089]
[1720524158529,1.12278433,3086.4,3085.5,3.0]
[1720524158736,0.04824599,3086.3,3085.5,3.0]
[1720524158924,0.04824599,3086.8,3085.5,3.0]
[1720524159251,2.2858,3086.6,3085.1,3.24132]
[1720524159504,2.01301155,3086.5,3085.2,3.24118]
[1720524159622,2.53759537,3086.4,3085.2,3.24118]
[1720524159818,1.7210758,3086.3,3085.3,3.24117]
[1720524160018,0.04824599,3086.3,3085.3,3.24117]
[1720524160254,0.3598246,3086.3,3085.3,3.24117]
[1720524160453,0.04824599,3086.2,3085.1,3.24129]
[1720524160879,0.04824599,3086.2,3085.0,6.24141]
[1720524161164,1.12289669,3086.1,3085.1,3.24138]
[1720524161321,0.04824599,3086.0,3085.0,3.0]
[1720524161519,0.55,3085.9,3085.0,3.0]
[1720524161717,0.3598246,3086.3,3085.2,3.24125]
[1720524162045,1.672857,3086.2,3085.2,3.24125]
[1720524162245,0.55,3086.2,3085.2,3.24125]
[1720524162455,1.12290148,3086.1,3085.0,6.2414]
[1720524162620,0.22036074,3086.0,3084.9,6.0669]
[1720524162818,1.67297999,3085.9,3084.9,6.0669]
[1720524163077,0.04824599,3085.8,3084.9,2.3199]
[1720524163836,0.04824599,3085.8,3084.7,3.24179]
[1720524164417,0.04824599,3085.8,3084.5,5.53944]
[1720524164649,0.55,3085.7,3084.6,3.0]
[1720524164832,0.55,3085.7,3084.6,6.24189]
[1720524165667,0.55,3085.8,3084.6,6.24189]
[1720524165863,2.7793246,3086.3,3085.0,3.24138]
[1720524166044,3.42383316,3086.2,3085.1,3.565498]
[1720524166242,2.5378507,3086.1,3084.9,3.747]
[1720524166558,2.53788814,3086.0,3084.9,3.747]
[1720524166766,1.37674839,3085.9,3084.9,3.747]
[1720524167061,3.88598246,3086.2,3085.0,3.24142]
[1720524167265,2.53782889,3086.1,3085.0,3.2414]
[1720524167465,1.12293314,3086.0,3085.0,3.2414]
[1720524167636,3.88598246,3086.2,3085.1,3.24137]
[1720524167843,2.58604262,3086.1,3084.9,3.747]
[1720524168172,2.53779663,3086.0,3084.9,3.747]
[1720524168322,1.12291886,3085.9,3085.0,3.68091699]
[1720524168526,3.55,3086.2,3085.1,3.24131]
[1720524168841,1.12290827,3086.1,3085.2,0.06481694]
[1720524169169,2.4195,3086.3,3085.4,3.747]
[1720524169368,2.3566,3086.7,3085.5,0.3747]
[1720524169535,2.53756722,3086.6,3085.5,0.3747]
[1720524169742,5.53756722,3086.5,3085.5,0.3747]
[1720524169929,2.53756722,3086.4,3085.4,3.747]
[1720524170122,2.53756722,3086.3,3085.4,3.747]
[1720524170325,2.58581321,3086.2,3085.4,3.747]
[1720524170560,2.3566,3086.7,3085.4,3.747]
[1720524170561,1.6728115,3086.1,3085.4,3.747]
[1720524170795,0.55,3086.1,3085.4,3.747]
[1720524171724,0.55,3086.2,3085.4,3.747]
[1720524173063,0.55,3086.2,3085.2,5.49507]
[1720524173064,2.5377495,3086.1,3085.2,2.2538]
[1720524173267,4.82611119,3086.0,3085.1,3.0]
[1720524173569,3.02045355,3085.9,3084.9,3.747]
[1720524173723,1.17113389,3085.8,3084.7,2.2753]
[1720524173924,1.17113389,3085.7,3084.7,2.2753]
[1720524174270,1.1228879,3085.6,3084.7,2.2753]
[1720524174467,0.04824599,3085.5,3084.7,2.2753]
[1720524174632,0.04824599,3085.5,3084.7,2.50283]
[1720524175141,0.04824599,3085.9,3084.7,2.50283]
[1720524175463,3.0880963,3085.8,3084.7,2.50283]
[1720524175642,2.58634229,3085.7,3084.7,2.50283]
[1720524175960,1.12305117,3085.6,3084.7,5.74463]
[1720524176166,0.04824599,3085.7,3084.7,2.2753]
[1720524176469,1.12302843,3085.6,3084.7,2.2753]
[1720524176943,0.55,3085.5,3084.4,3.747]
[1720524177140,1.29033127,3085.4,3084.5,2.99558799]
[1720524177351,1.67302843,3085.3,3084.5,2.99558799]
[1720524177663,4.10362843,3085.2,3084.4,3.747]
[1720524177867,1.53339127,3085.1,3084.4,3.747]
[1720524178066,1.17127442,3085.0,3083.9,9.3703]
[1720524178242,1.17127442,3085.0,3083.9,6.1277]
[1720524178243,1.12302843,3084.9,3083.9,6.1277]
[1720524178442,1.12302843,3084.9,3083.9,9.37031]
[1720524178662,1.12302843,3084.8,3084.1,2.813]
[1720524178878,1.12302843,3085.0,3084.1,2.813]